Workbook

Sheet AnnuityTilt
A1: Attachment 7: Annuity Tilt (D278983)
A2: Worked Example
F4: Units | G4: Value
E6: Capital cost | F6: # | G6: 100
E7: WACC | F7: per cent | G7: 0.105
E8: Annuity period | F8: years | G8: 15
E9: BESS Capital Cost Proportion | F9: per cent | G9: 0.55
E10: BESS Capital Cost Change | F10: per cent | G10: -0.07841434435
E11: Non BESS Capital Cost Change | F11: per cent | G11: 0
E13: Multiple required | F13: x | G13: 1.206393439
A15: Cashflow calculations
F17: Total | G17: 0 | H17: =+G17+1 -> 1 | I17: =+H17+1 -> 2 | J17: 3 | K17: 4 | L17: 5 | M17: 6 | N17: 7 | O17: 8 | P17: 9 | Q17: 10 | R17: 11 | S17: 12 | T17: 13 | U17: 14 | V17: 15
E18: Capital Cost | H18: =G6 -> 100 | I18: =I34 -> 95.68721106 | J18: =J34 -> 91.71260664 | K18: 88.04966822 | L18: 84.67395671 | M18: 81.56294941 | N18: 78.6958897 | O18: 76.0536486 | P18: 73.61859711 | Q18: 71.37448858 | R18: 69.30635035 | S18: 67.40038382 | T18: 65.64387241 | U18: 64.02509669 | V18: 62.53325621
E19: Apply multiple to constant annuity | F19: =SUM(H19:BR19) -> 190.9550378 | H19: =PMT($G$7,$G$8,-H18)*$G$13 -> 16.31623016 | I19: 15.61254559 | J19: 14.96403999 | K19: 14.36638653 | L19: 13.81559767 | M19: 13.30799855 | N19: 12.84020249 | O19: 12.40908835 | P19: 12.01177975 | Q19: 11.64562584 | R19: 11.30818364 | S19: 10.99720176 | T19: 10.71060531 | U19: 10.44648214 | V19: 10.20307001
E20: NPV | F20: =NPV(G7,H19:V19) -> 100
E21: Target NPV | F21: =G6 -> 100
E22: Difference | F22: =F20-F21 -> 0
A28: BESS calculations
F31: Total | G31: 0 | H31: =+G31+1 -> 1 | I31: =+H31+1 -> 2 | J31: 3 | K31: 4 | L31: 5 | M31: 6 | N31: 7 | O31: 8 | P31: 9 | Q31: 10 | R31: 11 | S31: 12 | T31: 13 | U31: 14 | V31: 15
E32: BESS | H32: =G6*G9 -> 55 | I32: =H32*(1+$G$10) -> 50.68721106 | J32: =I32*(1+$G$10) -> 46.71260664 | K32: 43.04966822 | L32: 39.67395671 | M32: 36.56294941 | N32: 33.6958897 | O32: 31.0536486 | P32: 28.61859711 | Q32: 26.37448858 | R32: 24.30635035 | S32: 22.40038382 | T32: 20.64387241 | U32: 19.02509669 | V32: 17.53325621
E33: Rest | H33: =G6-H32 -> 45 | I33: =H33*(1+$G$11) -> 45 | J33: =I33*(1+$G$11) -> 45 | K33: 45 | L33: 45 | M33: 45 | N33: 45 | O33: 45 | P33: 45 | Q33: 45 | R33: 45 | S33: 45 | T33: 45 | U33: 45 | V33: 45
E34: Total | H34: =SUM(H32:H33) -> 100 | I34: =SUM(I32:I33) -> 95.68721106 | J34: 91.71260664 | K34: 88.04966822 | L34: 84.67395671 | M34: 81.56294941 | N34: 78.6958897 | O34: 76.0536486 | P34: 73.61859711 | Q34: 71.37448858 | R34: 69.30635035 | S34: 67.40038382 | T34: 65.64387241 | U34: 64.02509669 | V34: 62.53325621
E35: BESS percent | H35: =H32/H34 -> 0.55 | I35: =I32/I34 -> 0.5297177177 | J35: 0.5093368115 | K35: 0.4889248204 | L35: 0.4685496964 | M35: 0.448278902 | N35: 0.4281785215 | O35: 0.4083124107 | P35: 0.3887414082 | Q35: 0.3695226278 | R35: 0.3507088489 | S35: 0.3323480157 | T35: 0.314482855 | U35: 0.2971506124 | V35: 0.2803829078
A37: End
